bitfinex-derivatives/quotes_ETHF0:USTF0_20250430
["timestamp","ask_amount","ask_price","bid_price","bid_amount"]
[1746020880242,1.13692,1758.7,1758.6,1.13693]
[1746020880443,1.1368,1758.9,1758.8,1.13685]
[1746020880844,3.24,1759.1,1758.7,2.84224]
[1746020881045,1.13662,1759.2,1759.1,1.13662]
[1746020881445,1.13661,1759.2,1759.1,1.13661]
[1746020881648,1.1367,1759.1,1759.0,1.1367]
[1746020881946,3.24,1759.3,1758.9,3.1873]
[1746020882348,9.28918,1759.3,1758.9,3.1873]
[1746020882651,1.13672,1759.0,1758.9,3.1873]
[1746020883243,3.2078,1759.3,1758.9,3.1873]
[1746020883445,3.2078,1759.3,1759.2,1.13659]
[1746020883651,3.3641,1759.4,1759.3,1.13653]
[1746020883847,6.04857,1759.7,1759.3,5.044]
[1746020883848,3.2078,1759.6,1759.3,5.044]
[1746020884050,6.04904,1759.4,1759.0,5.044]
[1746020884350,1.13661,1759.2,1759.0,5.044]
[1746020884550,1.13659,1759.2,1759.1,1.13661]
[1746020884850,3.828,1759.4,1759.1,3.2639]
[1746020885048,1.13659,1759.2,1759.1,3.2639]
[1746020885447,1.13659,1759.2,1759.1,4.40056]
[1746020885643,1.13659,1759.2,1759.1,4.40051]
[1746020885839,1.13659,1759.2,1759.1,3.2639]
[1746020886057,1.13666,1759.1,1759.0,6.18069]
[1746020886252,1.13662,1759.2,1759.1,1.1366]
[1746020886444,1.13662,1759.2,1759.1,4.4735]
[1746020886949,6.04839,1759.8,1759.1,9.0721359]
[1746020887142,6.04839,1759.8,1759.2,4.0721359]
[1746020887352,6.04864,1759.6,1759.2,3.3369]
[1746020887552,1.13653,1759.3,1759.2,4.47346]
[1746020887940,1.13653,1759.3,1759.2,4.47344]
[1746020888145,1.13653,1759.4,1759.3,1.13651]
[1746020888341,1.13653,1759.3,1759.2,3.3369]
[1746020888548,1.13666,1759.1,1759.0,6.18071]
[1746020888749,1.13666,1759.1,1759.0,9.53541]
[1746020888949,4.38114,1759.2,1759.1,1.13666]
[1746020889145,3.2078,1759.4,1759.0,8.3987]
[1746020889349,1.13648,1759.4,1759.3,1.13653]
[1746020889551,4.38094,1759.5,1759.4,1.13646]
[1746020889858,3.2078,1759.8,1759.5,1.13638]
[1746020890155,6.04801,1760.0,1759.5,3.3547]
[1746020890355,1.13627,1759.7,1759.6,1.1363]
[1746020890555,1.13627,1759.7,1759.6,41.9363]
[1746020891549,1.13622,1759.8,1759.7,1.1362]
[1746020891755,3.1309,1760.1,1759.7,3.2078]
[1746020891950,1.13617,1759.9,1759.8,1.13617]
[1746020892155,1.13617,1759.9,1759.8,6.17917]
[1746020892354,1.13617,1759.9,1759.8,5.043]
[1746020892760,7.47487,1759.9,1759.8,5.043]
[1746020893162,11.30287,1759.9,1759.8,5.043]
[1746020893347,1.13627,1759.7,1759.6,40.8]
[1746020893554,1.1364,1759.5,1759.4,5.043]
[1746020893749,1.1364,1759.5,1759.4,6.17946]
[1746020893957,1.13639,1759.6,1759.5,1.13638]
[1746020894553,1.13639,1759.6,1759.5,1.13637]
[1746020894768,1.13632,1759.7,1759.6,1.1363]
[1746020894954,1.1364,1759.5,1759.4,45.843]
[1746020895261,1.1364,1759.5,1759.4,5.043]
[1746020895655,4.2425,1759.5,1759.4,5.043]
[1746020895857,7.4503,1759.5,1759.4,5.043]
[1746020896159,1.13646,1759.4,1759.3,40.8]
[1746020896355,4.24256,1759.4,1759.3,40.8]
[1746020897050,4.96444,1759.5,1759.0,5.043]
[1746020897253,5.68004,1760.2,1759.5,1.1364]
[1746020897254,1.13636,1759.6,1759.5,1.1364]
[1746020897455,1.13633,1759.6,1759.5,6.17936]
[1746020897661,1.13633,1759.6,1759.5,46.9794]
[1746020898254,1.13632,1759.7,1759.6,1.13628]
[1746020898454,3.2078,1759.9,1759.7,1.13621]
[1746020898756,1.13624,1759.8,1759.7,1.13621]
[1746020898951,1.13611,1760.0,1759.9,1.13608]
[1746020899155,1.13611,1760.0,1759.9,6.17908]
[1746020899358,1.13606,1760.1,1760.0,1.13603]
[1746020899553,1.13607,1760.0,1759.9,6.17909]
[1746020899852,3.3077,1760.2,1759.9,6.17909]
[1746020900055,12.47392711,1760.5,1760.0,2.84019]
[1746020900265,1.1359,1760.3,1760.2,1.1359]
[1746020900765,12.47392711,1760.5,1760.1,2.84003]
[1746020900967,10.40191711,1760.5,1760.4,1.13582]
[1746020901262,9.26612711,1760.5,1760.4,6.17782]
[1746020901760,9.26612711,1760.5,1760.4,11.17782]
[1746020901959,1.95452503,1760.5,1760.4,11.17782]
[1746020902162,1.95452503,1760.5,1760.4,15.73807152]
[1746020902367,1.67051481,1760.5,1760.4,56.53736116]
[1746020902559,11.07605965,1760.8,1760.4,50.35954116]
[1746020902764,3.3727,1760.7,1760.4,44.628]
[1746020903061,12.21163965,1760.8,1760.6,1.13564]
[1746020903267,12.21161965,1760.8,1760.7,5.042]
[1746020903456,12.21161965,1760.8,1760.7,6.17762]
[1746020903457,11.07605965,1760.8,1760.7,6.17762]
[1746020903661,12.21161965,1760.8,1760.7,6.17762]
[1746020903860,11.07605965,1760.8,1760.7,5.042]
[1746020904061,0.28401022,1760.8,1760.7,6.17275369]
[1746020904256,0.28401022,1761.0,1760.7,6.17271369]
[1746020904463,1.41957022,1760.8,1760.7,5.03713369]
[1746020905057,0.28401022,1760.8,1760.5,3.2078]
[1746020905256,3.0978,1760.7,1760.6,5.041]
[1746020905467,0.28401022,1760.8,1760.7,1.13562]
[1746020905671,0.28401022,1760.8,1760.7,4.46792]
[1746020906056,0.28401022,1760.8,1760.7,7.67572]
[1746020906669,1.13556,1760.8,1760.7,7.67572]
[1746020906861,1.41957022,1760.8,1760.7,7.67572]
[1746020907064,0.28401022,1760.8,1760.7,7.67572]
[1746020907272,0.28401022,1761.0,1760.7,6.5401]
[1746020907470,0.28401022,1761.0,1760.9,1.13549]
[1746020907671,0.28401022,1761.0,1760.7,6.5401]
[1746020907967,0.28401022,1761.0,1760.7,3.3323]
[1746020907968,1.41957022,1760.8,1760.7,3.3323]
[1746020908167,1.41957022,1760.8,1760.6,9.38294]
[1746020908168,1.41963022,1760.7,1760.6,5.041]
[1746020908362,4.57683022,1760.7,1760.6,5.041]
[1746020908569,1.41963022,1760.7,1760.6,5.041]
[1746020909362,9.57683022,1760.7,1760.6,5.041]
[1746020909774,1.13594,1760.3,1760.2,1.13595]
[1746020909965,1.13594,1760.3,1760.2,5.027]
[1746020910164,1.13594,1760.3,1760.2,46.96295]
[1746020910360,3.4327,1760.5,1760.2,49.1371]
[1746020910562,1.41985022,1760.4,1760.3,1.13584]
[1746020910763,0.28401022,1760.4,1760.3,1.13584]
[1746020910963,1.41983022,1760.4,1760.3,1.13584]
[1746020911265,0.28401022,1760.4,1760.3,1.13584]
[1746020911473,0.28401022,1760.5,1760.2,44.1101]
[1746020911668,0.28401022,1760.5,1760.4,1.13582]
[1746020911868,0.28401022,1760.6,1760.5,1.13575]
[1746020912063,1.41970022,1760.6,1760.5,1.13575]
[1746020912266,0.28401022,1760.9,1760.4,6.14964]
[1746020912465,1.13556,1760.8,1760.7,1.13557]
[1746020912666,1.41955022,1760.9,1760.8,1.13556]
[1746020912969,0.28401022,1761.0,1760.9,1.13549]
[1746020913167,6.8635,1761.1,1760.8,3.3101]
[1746020913168,1.41950022,1760.9,1760.8,3.3101]
[1746020913367,0.28401022,1761.0,1760.8,4.44566]
[1746020913572,1.13549,1760.9,1760.8,3.3101]
[1746020913872,1.41950022,1760.9,1760.8,3.3101]
[1746020914069,0.28401022,1760.9,1760.7,5.027]
[1746020914276,4.62927022,1760.8,1760.7,5.027]
[1746020915666,0.28401022,1761.0,1760.5,3.2078]
[1746020915867,1.13562,1760.7,1760.6,5.026]
[1746020916180,1.41970022,1760.6,1760.5,5.026]
[1746020916377,8.02750022,1760.6,1760.5,5.026]
[1746020916874,4.81970022,1760.6,1760.5,5.026]
[1746020917067,0.28401022,1760.6,1760.5,6.16175]
[1746020917268,1.41970022,1760.6,1760.5,5.026]
[1746020917477,4.62750022,1760.6,1760.5,5.026]
[1746020918173,1.41970022,1760.6,1760.5,5.026]
[1746020918767,1.41970022,1760.6,1760.0,2.84004]
[1746020918768,0.28401022,1760.4,1759.7,3.2078]
[1746020918967,1.13613,1760.0,1759.9,1.13611]
[1746020919271,1.42014022,1760.0,1759.9,41.93611]
[1746020919474,1.42015022,1759.9,1759.8,9.53386]
[1746020919670,0.28401022,1759.9,1759.8,6.89551991]
[1746020919869,0.28401022,1760.0,1759.9,1.13614]
[1746020920072,1.42008022,1760.0,1759.9,1.13614]
[1746020920279,1.13614,1759.9,1759.8,46.96216]
[1746020920476,6.04816,1759.9,1759.5,5.026]
[1746020920777,1.42034022,1759.6,1759.5,5.026]
[1746020921071,4.11201022,1759.6,1759.2,5.026]
[1746020921276,4.11201022,1759.6,1759.5,1.1364]
[1746020921478,4.11201022,1759.6,1759.5,41.9364]
[1746020921773,4.11201022,1759.6,1759.5,42.66999973]
[1746020922276,1.42051022,1759.4,1759.3,3.2078]
[1746020922979,1.42054022,1759.3,1759.2,5.026]
[1746020923178,4.82524022,1759.3,1759.2,5.027]
[1746020924079,1.13673,1759.0,1758.9,1.13676]
[1746020924277,1.1367,1759.1,1759.0,1.13672]
[1746020924473,0.28401022,1759.0,1758.9,5.027]
[1746020924679,0.28401022,1759.1,1759.0,1.13672]
[1746020924879,1.13672,1759.0,1758.9,5.027]
[1746020925075,1.13672,1759.0,1758.9,6.16379]
[1746020925276,4.82541022,1759.1,1759.0,1.13672]
[1746020925474,4.82541022,1759.1,1758.9,5.027]
[1746020925684,1.13672,1759.0,1758.9,6.16375]
[1746020925982,0.28401022,1759.1,1759.0,1.13672]
[1746020926183,0.28401022,1759.1,1759.0,41.93672]
[1746020926475,1.42060022,1759.2,1759.0,45.14447]
[1746020926682,1.42067022,1759.1,1759.0,40.8]
[1746020926985,4.91317022,1759.1,1759.0,41.93672]
[1746020927282,0.28401022,1759.2,1759.1,1.13666]
[1746020927479,0.28401022,1759.3,1759.2,1.13659]
[1746020927685,0.28401022,1759.4,1759.3,1.13653]
[1746020927877,0.28401022,1759.5,1759.3,5.028]
[1746020928088,1.42041022,1759.5,1759.3,5.028]
[1746020928285,1.42047022,1759.4,1759.3,6.16446]
[1746020928489,0.28401022,1759.4,1759.3,6.16446]
[1746020929180,1.42047022,1759.4,1759.3,5.028]
[1746020929372,1.13659,1759.2,1759.1,3.2078]
[1746020929577,1.42060022,1759.2,1759.1,6.16566]
[1746020929887,1.13672,1759.0,1758.9,5.029]
[1746020930075,7.10451022,1759.1,1759.0,1.13672]
[1746020930477,1.13672,1759.0,1758.9,5.029]
[1746020930787,8.01053022,1759.0,1758.9,5.029]
[1746020930975,1.13691,1758.7,1758.6,117.07696]
[1746020931376,4.84622022,1758.7,1758.6,115.94]
[1746020931684,4.84622022,1758.7,1758.6,117.07698]
[1746020931872,3.70931022,1758.7,1758.6,117.07698]
[1746020932187,1.42084022,1758.9,1758.8,1.13685]
[1746020932377,4.84614022,1758.9,1758.8,1.13685]
[1746020932874,3.70931022,1758.9,1758.8,1.13685]
[1746020933282,0.28401022,1759.2,1759.1,1.13666]
[1746020933585,4.84590022,1759.2,1759.1,6.16566]
[1746020933782,3.70931022,1759.2,1759.1,6.16566]
[1746020934086,0.28401022,1759.2,1759.1,6.16566]
[1746020935379,1.42060022,1759.2,1759.1,5.029]
[1746020935781,1.42067022,1759.1,1759.0,5.03]
[1746020935981,0.28401022,1758.9,1758.6,70.111]
[1746020936281,0.28401022,1758.6,1758.5,6.16701]
[1746020936483,1.42099022,1758.6,1758.5,9.39461]
[1746020936680,0.28401022,1758.6,1758.5,9.39461]
[1746020937390,1.42099022,1758.6,1758.5,9.39461]
[1746020937583,0.28401022,1758.7,1758.6,1.13698]
[1746020937890,1.42091022,1758.8,1758.7,1.13687]
[1746020938393,0.28401022,1758.9,1758.8,1.13685]
[1746020938890,1.42080022,1758.9,1758.8,1.13685]
[1746020939188,0.28401022,1758.9,1758.8,1.13685]
[1746020939582,0.28401022,1759.0,1758.9,1.13679]
[1746020939790,0.28401022,1759.0,1758.9,6.14979]
[1746020939992,1.42073022,1759.0,1758.9,6.14979]
[1746020940182,4.68523022,1759.0,1758.9,6.14979]
[1746020940884,3.54851022,1759.0,1758.9,6.14979]
[1746020941086,4.68523022,1759.0,1758.9,5.013]
[1746020941280,4.68523022,1759.0,1758.9,6.14979]
[1746020941478,12.89303022,1759.0,1758.9,5.013]
[1746020942087,0.28401022,1758.5,1758.4,45.14491]
[1746020942288,1.42105022,1758.5,1758.4,45.814]
[1746020942491,1.42105022,1758.5,1758.4,46.95111]
[1746020942687,0.28401022,1758.5,1758.4,46.95111]
[1746020942989,0.28401022,1758.9,1758.8,1.13685]
[1746020943177,0.28401022,1758.9,1758.8,6.15085]
[1746020943383,0.28401022,1759.1,1759.0,1.13672]
[1746020943980,1.13642,1759.5,1759.1,2.84165]
[1746020944187,1.1365,1759.4,1759.3,1.13647]
[1746020944384,1.42054022,1759.3,1759.2,6.15053]
[1746020944888,1.42054022,1759.3,1759.2,1.13653]
[1746020945390,1.42067022,1759.1,1759.0,5.014]
[1746020945999,0.28401022,1758.5,1758.2,6.15124]
[1746020946188,1.42116022,1758.4,1758.3,1.13717]
[1746020946491,1.13717,1758.3,1758.2,5.014]
[1746020946693,1.42118022,1758.3,1758.2,6.15124]
[1746020946884,0.28401022,1758.3,1758.2,6.15124]
[1746020947188,0.28401022,1758.3,1758.2,1.13724]
[1746020947392,0.28401022,1758.3,1758.2,6.15124]
[1746020947688,1.13713,1758.4,1758.3,1.13717]
[1746020947689,0.28401022,1758.4,1758.3,1.13717]
[1746020947886,0.28401022,1758.8,1758.3,6.84706615]
[1746020948084,0.28401022,1758.8,1758.7,1.13691]
[1746020948285,0.28401022,1758.8,1758.7,6.15091]
[1746020948480,0.28401022,1758.8,1758.7,6.88637956]
[1746020948684,0.28401022,1758.8,1758.7,6.88639234]
[1746020948888,0.28401022,1758.9,1758.8,1.13685]
[1746020949194,0.28401022,1758.9,1758.8,1.87227627]
[1746020950286,0.28401022,1759.0,1758.9,1.13679]
[1746020950601,1.42073022,1759.0,1758.9,1.13679]
[1746020951088,0.28401022,1759.0,1758.9,1.87341115]
[1746020951297,0.28401022,1759.0,1758.9,1.87360652]
[1746020951789,0.28401022,1759.1,1759.0,1.13672]
[1746020951988,0.28401022,1759.1,1759.0,6.88753652]
[1746020952400,1.42067022,1759.1,1759.0,6.88753652]
[1746020952688,0.28401022,1759.1,1759.0,6.88753652]
[1746020953090,0.28401022,1759.3,1759.2,1.13659]
[1746020953290,5.862,1759.5,1759.3,1.13653]
[1746020953291,0.28401022,1759.4,1759.3,1.13653]
[1746020953490,0.28401022,1759.4,1759.3,6.88760817]
[1746020953789,1.42047022,1759.4,1759.3,5.75107817]
[1746020954187,8.37657022,1759.4,1759.3,5.75107817]
[1746020954584,8.37657022,1759.4,1759.3,6.88760817]
[1746020954785,7.24011022,1759.4,1759.3,6.8875335]
[1746020954994,4.11201022,1759.4,1759.3,6.8875335]
[1746020955189,1.42047022,1759.4,1759.3,6.8875335]
[1746020955694,0.28401022,1759.4,1759.3,6.8875335]
[1746020955895,1.42047022,1759.4,1759.3,5.7510035]
[1746020956096,4.56287022,1759.4,1759.3,5.7510035]
[1746020956292,4.56287022,1759.4,1759.3,5.014]
[1746020956492,4.56287022,1759.4,1759.3,5.75082148]
[1746020956693,4.56287022,1759.4,1759.3,5.014]
[1746020957094,4.56287022,1759.4,1759.3,6.15053]
[1746020957286,4.56287022,1759.4,1759.3,5.014]
[1746020957486,1.42047022,1759.4,1759.3,6.88731975]
[1746020957690,0.28401022,1759.5,1759.4,1.13646]
[1746020957894,0.28401022,1759.5,1759.4,5.24084975]
[1746020958197,1.42041022,1759.5,1759.4,5.24084975]
[1746020958499,0.28401022,1759.5,1759.4,5.24084975]
[1746020958696,0.28401022,1759.5,1759.4,8.44864975]
[1746020959387,0.28401022,1759.5,1759.4,5.24084975]
[1746020959590,1.42041022,1759.5,1759.4,6.88605549]
[1746020960291,0.28401022,1759.5,1759.4,6.88605549]
[1746020960788,0.28401022,1759.5,1759.4,5.74946301]
[1746020961093,1.13646,1759.4,1759.3,9.3993]
[1746020961399,4.21686,1759.4,1759.3,6.1495]
[1746020961893,4.21686,1759.4,1759.3,5.013]
[1746020962099,1.13679,1758.9,1758.8,3.2078]
[1746020962294,4.34464,1758.9,1758.8,5.74970877]
[1746020962497,4.62865022,1758.9,1758.8,5.013]
[1746020962689,1.42085022,1758.9,1758.8,5.013]
[1746020963098,1.42080022,1758.9,1758.8,6.14985]
[1746020963293,0.28401022,1759.0,1758.9,1.13679]
[1746020963488,0.28401022,1759.0,1758.9,1.87343591]
[1746020963797,0.28401022,1759.2,1759.0,1.13667]
[1746020964101,0.28401022,1759.1,1759.0,4.38147]
[1746020964298,1.42067022,1759.1,1759.0,5.11809255]
[1746020964502,0.28401022,1759.1,1759.0,5.11812131]
[1746020964804,0.28401022,1759.2,1759.1,1.13666]
[1746020965002,0.28401022,1759.2,1759.1,1.87331131]
[1746020965398,1.42060022,1759.2,1759.1,1.87331131]
[1746020965604,0.28401022,1759.2,1759.1,1.87331131]
[1746020965802,1.42059022,1759.3,1759.2,1.13659]
[1746020966101,0.28401022,1759.3,1759.2,10.28589358]
[1746020966304,1.42054022,1759.3,1759.2,5.2729507]
[1746020966502,0.28401022,1759.0,1758.9,9.53979]
[1746020966701,1.42073022,1759.0,1758.9,6.8864855]
[1746020966898,1.42073022,1759.0,1758.9,0.7366955]
[1746020967100,1.42073022,1759.0,1758.9,5.013]
[1746020967906,4.51643022,1759.0,1758.9,6.14979]
[1746020968307,0.28401022,1759.2,1759.1,1.13666]
[1746020968701,0.28401022,1759.2,1759.1,1.87348902]
[1746020969600,0.28401022,1759.2,1759.1,5.08128902]
[1746020970003,6.14601022,1759.3,1759.1,3.94459184]
[1746020970204,0.28401022,1759.3,1759.2,5.25678184]
[1746020970407,0.28401022,1759.4,1759.2,4.12019184]
[1746020970704,1.13659,1759.2,1759.1,40.8]
[1746020971005,1.42060022,1759.2,1759.1,47.66443676]
[1746020971207,0.28401022,1759.2,1759.1,47.66443676]
[1746020971601,0.28401022,1759.2,1759.1,6.86443676]
[1746020971802,1.42060022,1759.2,1759.1,6.86443676]
[1746020972207,4.11201022,1759.2,1759.1,6.86443676]
[1746020972507,3.828,1759.2,1759.1,15.07223676]
[1746020973298,0.28401022,1759.3,1759.2,1.13659]
[1746020973503,0.28401022,1759.5,1759.4,1.13646]
[1746020973708,0.28401022,1759.5,1759.4,6.86423676]
[1746020975101,0.28401022,1759.7,1759.6,1.13633]
[1746020975295,4.55209022,1759.7,1759.6,1.13633]
[1746020975597,1.42038022,1759.6,1759.5,1.13635]
[1746020975809,1.42038022,1759.6,1759.5,1.87293781]
[1746020976010,0.28401022,1759.6,1759.5,1.87293781]
[1746020976410,4.62814022,1759.6,1759.5,0.73658781]
[1746020976607,4.62814022,1759.6,1759.5,0.73687907]
[1746020976608,3.49181022,1759.6,1759.5,0.73687907]
[1746020976807,1.42039022,1759.6,1759.5,1.87327773]
[1746020977006,1.1364,1759.5,1759.4,6.12742]
[1746020977312,3.12517022,1759.4,1759.1,4.991]
[1746020977518,1.42054022,1759.3,1759.2,0.73757169]
[1746020977704,1.13659,1759.2,1759.1,6.12761]
[1746020978006,3.2536,1759.2,1759.1,6.86520503]
[1746020978199,8.21819,1759.2,1759.1,6.86520503]
[1746020978399,4.11201022,1759.2,1759.1,6.86520503]
[1746020978804,5.24860022,1759.2,1759.1,6.86520503]
[1746020979204,5.24860022,1759.2,1759.1,6.86543977]
[1746020979405,4.11201022,1759.2,1759.1,6.86543977]
[1746020979601,5.24860022,1759.2,1759.1,6.86543977]
[1746020979806,5.24860022,1759.2,1759.1,5.72882977]
[1746020980013,8.34880022,1759.2,1759.1,4.991]
[1746020980315,1.42078022,1759.0,1758.9,1.13673]
[1746020980501,1.42078022,1759.0,1758.9,5.72895743]
[1746020981008,1.42078022,1759.0,1758.9,0.73795743]
[1746020981212,1.13704,1758.5,1758.4,6.1281]
[1746020981512,1.13704,1758.5,1758.4,6.86592663]
[1746020981713,1.13704,1758.5,1758.4,6.86593663]
[1746020982107,7.21221022,1758.5,1758.2,122.17833573]
[1746020982311,7.21221022,1758.5,1758.4,1.13711]
[1746020982512,8.34929022,1758.5,1758.4,1.13711]
[1746020983012,1.13711,1758.4,1758.3,6.12913]
[1746020983213,1.13711,1758.4,1758.3,4.992]
[1746020983414,4.33331,1758.4,1758.3,4.992]
[1746020983715,1.42131022,1758.1,1758.0,14.99971573]
[1746020983919,0.28401022,1758.3,1758.2,1.13724]
[1746020984106,0.28401022,1758.3,1758.2,1.87401807]
[1746020984415,0.28401022,1758.3,1758.2,1.87352803]
[1746020984913,0.28401022,1758.3,1758.2,1.87351613]
[1746020985315,0.28401022,1758.3,1758.2,8.34151613]
[1746020986109,1.42118022,1758.3,1758.2,8.34151613]
[1746020986310,1.13727,1758.2,1758.1,1.13726]
[1746020986613,1.42131022,1758.1,1758.0,2.64701]
[1746020987113,16.65961022,1758.1,1758.0,2.64701]
[1746020987308,1.1375,1757.8,1757.7,4.992]
[1746020988101,4.9655,1757.8,1757.7,4.992]
[1746020988504,0.28401022,1757.7,1757.3,1.13778]
[1746020988716,6.05195,1757.6,1757.2,14.33673573]
[1746020988915,1.42183022,1757.3,1757.2,14.33673573]
[1746020989119,1.42183022,1757.3,1757.2,55.13673573]
[1746020989317,1.42183022,1757.3,1757.2,45.05928]
[1746020989521,0.28401022,1757.3,1757.2,45.05928]
[1746020990519,1.42183022,1757.3,1757.2,45.05928]
[1746020990716,1.42183022,1757.3,1757.2,4.25928]
[1746020990910,1.42183022,1757.3,1757.2,3.1214]
[1746020991106,1.42183022,1757.3,1757.2,43.9214]
[1746020991316,4.60253022,1757.3,1757.2,43.9214]
[1746020991517,4.60253022,1757.3,1757.2,45.05928]
[1746020991716,3.46471022,1757.3,1757.2,4.25928]
[1746020992518,0.28401022,1757.3,1757.2,4.25928]
[1746020993014,0.28401022,1757.5,1757.2,8.1214]
[1746020993314,0.28401022,1757.6,1757.5,1.13769]
[1746020993511,0.28401022,1757.6,1757.5,6.13169]
[1746020993711,0.28401022,1757.6,1757.5,9.47569]
[1746020994212,1.42164022,1757.6,1757.5,9.47569]
[1746020994412,4.59154022,1757.6,1757.5,6.13169]
[1746020995322,7.79934022,1757.6,1757.5,4.994]
[1746020995522,12.79934022,1757.6,1757.5,4.994]
[1746020995824,1.13776,1757.4,1757.3,1.13779]
[1746020996324,1.13782,1757.3,1757.2,9.39384]
[1746020996621,1.42183022,1757.3,1757.2,4.995]
[1746020997017,1.13791,1757.2,1757.1,1.13795]
[1746020997220,4.5134,1757.2,1757.1,1.13795]
[1746020997820,1.42196022,1757.1,1757.0,6.13296]
[1746020998021,4.62586022,1757.1,1757.0,6.13296]
[1746020998226,4.62586022,1757.1,1757.0,4.995]
[1746020998527,1.42209022,1756.9,1756.8,73.4018]
[1746020998823,1.42222022,1756.7,1756.6,9.42902]
[1746020999217,8.45802022,1756.7,1756.6,8.2908]
[1746020999415,1.1384,1756.4,1756.3,4.995]
[1746020999621,1.42241022,1756.4,1756.3,9.42927]
[1746020999823,3.48791022,1756.4,1756.3,9.42927]
[1746021000124,7.31591022,1756.4,1756.3,6.13347]
[1746021000315,8.45431022,1756.4,1756.3,4.995]
[1746021000914,8.45431022,1756.4,1756.2,4.43431]
[1746021001121,2.84644,1756.2,1755.7,7.52473027]
[1746021001324,0.28401022,1756.1,1756.0,1.13866]
[1746021001523,0.28401022,1756.2,1756.1,1.1386]
[1746021001718,0.28401022,1756.3,1756.2,1.13853]
[1746021001924,0.28401022,1756.3,1756.2,6.10753]
[1746021002120,0.28401022,1756.5,1756.2,4.969]
[1746021002426,0.28401022,1756.6,1756.5,1.13834]
[1746021002623,1.42236022,1756.5,1756.4,1.13837]
[1746021002823,1.42248022,1756.3,1756.2,4.969]
[1746021003032,0.28401022,1756.5,1756.4,1.1384]
[1746021003325,3.3831,1756.6,1756.5,1.13834]
[1746021003326,0.28401022,1756.6,1756.5,1.13834]
[1746021003519,1.42228022,1756.6,1756.5,1.13834]
[1746021003714,0.28401022,1756.6,1756.5,1.13834]
[1746021003924,1.42231022,1756.6,1756.3,3.0718]
[1746021004229,1.13837,1756.5,1756.2,4.969]
[1746021004429,0.28401022,1756.3,1756.2,6.10753]
[1746021004626,0.28401022,1756.3,1755.8,44.0078]
[1746021004827,0.28401022,1756.1,1755.8,4.97]
[1746021005026,0.28401022,1756.2,1756.1,1.1386]
[1746021005222,7.00027,1756.7,1756.6,1.13827]
[1746021005521,5.862,1756.7,1756.6,1.13827]
[1746021005924,9.2287,1756.9,1756.8,1.13814]
[1746021006122,13.0567,1756.9,1756.4,11.3824]
[1746021006328,1.13821,1756.7,1756.6,1.13823]
[1746021006629,1.13834,1756.5,1756.4,8.2356]
[1746021006825,1.13844,1756.4,1756.3,1.13844]
[1746021007129,2.84618,1756.3,1755.8,8.1178]
[1746021007425,11.91608,1756.3,1755.8,4.971]
[1746021007729,7.00051,1756.3,1756.2,1.13853]
[1746021007927,5.862,1756.3,1755.9,44.0078]
[1746021008118,3.2078,1756.0,1755.8,6.10973]
[1746021008431,1.13873,1755.9,1755.8,4.971]
[1746021008730,18.248,1756.2,1755.8,4.971]
[1746021009022,9.0699,1756.2,1755.8,4.971]
[1746021009230,9.0699,1756.2,1755.9,1.13873]
[1746021009419,1.13873,1755.9,1755.8,6.10975]
[1746021009621,1.13873,1755.9,1755.8,4.971]
[1746021009821,1.1387,1756.0,1755.8,4.971]
[1746021010330,1.13879,1755.8,1755.7,4.971]
[1746021010925,1.13892,1755.6,1755.5,3.2078]
[1746021011121,3.2078,1755.7,1755.3,75.209]
[1746021011319,3.2078,1755.5,1755.2,4.49063]
[1746021011524,3.2078,1755.5,1755.1,4.971]
[1746021011525,1.13918,1755.2,1755.1,4.971]
[1746021012131,3.828,1755.2,1755.1,6.11025]
[1746021012626,4.96718,1755.2,1755.1,4.971]
[1746021013028,8.828,1755.2,1754.7,4.34727]
[1746021013232,6.4143,1755.1,1754.8,1.13942]
[1746021013435,3.828,1755.2,1755.1,1.13925]
[1746021013937,3.828,1755.2,1755.0,1.13926]
[1746021014236,18.24968,1755.5,1755.1,1.13922]
[1746021014431,1.13918,1755.2,1755.1,1.13922]
[1746021014932,1.13915,1755.3,1755.1,1.13922]
[1746021015130,1.13915,1755.3,1754.8,2.84857]
[1746021015131,18.24968,1755.5,1754.7,6.20471]
[1746021015335,1.13917,1755.3,1755.1,1.13923]
[1746021015532,3.0966,1755.4,1755.0,4.34838]
[1746021015733,4.23582,1755.2,1755.0,3.2091]
[1746021015938,4.34705,1755.1,1755.0,3.2091]
[1746021016236,3.0966,1755.1,1755.0,4.34841]
[1746021016432,3.2078,1755.4,1755.0,3.2091]
[1746021016637,1.13923,1755.2,1755.1,1.13925]
[1746021016824,4.38106,1755.3,1755.1,1.13925]
[1746021017029,1.13918,1755.2,1755.1,1.13925]
[1746021017231,3.2419,1755.2,1755.1,1.13925]
[1746021017437,4.38108,1755.2,1755.1,1.13925]
[1746021017937,1.13925,1755.1,1755.0,3.2091]
[1746021018142,4.38115,1755.1,1755.0,3.2091]
[1746021018445,4.38115,1755.1,1754.9,1.13933]
[1746021018446,15.15992,1755.1,1754.7,3.356]
[1746021018737,9.1039,1755.1,1754.9,1.13938]
[1746021018940,1.13938,1754.9,1754.8,45.0196]
[1746021019130,1.13938,1754.9,1754.7,3.356]
[1746021019131,1.13957,1754.6,1754.5,4.973]
[1746021019331,6.3769,1754.8,1754.5,8.1285]
[1746021019535,6.3769,1754.8,1754.6,1.13954]
[1746021019536,1.13951,1754.7,1754.6,1.13954]
[1746021019740,1.13951,1754.7,1754.5,3.1555]
[1746021019741,4.30861,1754.7,1754.5,4.29509]
[1746021019938,3.1691,1754.7,1754.5,3.1555]
[1746021020141,1.13964,1754.5,1754.2,8.1818]
[1746021020345,3.2078,1754.6,1754.4,1.13966]
[1746021020346,1.13962,1754.6,1754.4,1.13966]
[1746021020549,1.13962,1754.6,1754.3,3.1555]
[1746021020550,1.1397,1754.4,1754.3,3.1555]
[1746021020741,9.0311,1754.5,1754.3,3.1555]
[1746021020942,1.1397,1754.4,1754.3,3.1555]